bitfinex/quotes_SOLUSD_20240930
["timestamp","ask_amount","ask_price","bid_price","bid_amount"]
[1727722561683,6.4322,155.47,155.43,6.4336]
[1727722564391,6.4325,155.46,155.42,30.210884]
[1727722564569,6.4334,155.44,155.41,16.0857]
[1727722564774,16.6234,155.48,155.4,6.4349]
[1727722564775,6.4341,155.42,155.4,7.08778394]
[1727722564979,6.4341,155.42,155.39,7.08778394]
[1727722565289,6.4341,155.42,155.38,16.0888]
[1727722565290,6.4341,155.42,155.38,29.61238394]
[1727722565467,6.4341,155.42,155.38,22.5246]
[1727722566590,16.6234,155.48,155.4,6.4349]
[1727722566591,6.4334,155.44,155.4,6.4349]
[1727722566889,6.4334,155.44,155.41,1.28671724]
[1727722568165,6.4334,155.44,155.4,6.4349]
[1727722570783,16.6234,155.48,155.4,16.0871]
[1727722570965,16.6234,155.48,155.41,1.28666098]
[1727722571280,6.4332,155.45,155.41,7.72116098]
[1727722571483,16.0806,155.47,155.39,6.4352]
[1727722571687,6.4334,155.44,155.4,6.4349]
[1727722576594,6.4338,155.43,155.39,22.5233]
[1727722576773,6.4338,155.43,155.4,1.28678818]
[1727722577279,6.4338,155.43,155.39,22.5233]
[1727722578992,6.4338,155.43,155.36,11.46472849]
[1727722578993,6.435,155.4,155.36,22.5275]
[1727722579200,31.7656,155.43,155.33,16.0941]
[1727722579496,31.7656,155.43,155.34,6.4374]
[1727722579497,6.4358,155.38,155.34,6.4374]
[1727722580010,6.4355,155.39,155.34,6.4374]
[1727722580782,31.7656,155.43,155.29,29.7151737]
[1727722580783,16.0869,155.41,155.29,29.7151737]
[1727722580992,6.4371,155.35,155.31,6.4386]
[1727722582996,6.4367,155.36,155.31,6.4386]
[1727722583578,6.4367,155.36,155.32,6.4382]
[1727722586079,16.0869,155.41,155.33,6.4378]
[1727722587193,6.4364,155.37,155.33,6.4378]
[1727722588092,6.4366,155.36,155.32,6.4382]
[1727722588294,6.4373,155.35,155.31,30.215584]
[1727722590794,6.4367,155.36,155.32,6.4383]
[1727722591483,6.4367,155.36,155.33,1.28735178]
[1727722592207,6.4367,155.36,155.32,6.4383]
[1727722592398,22.4708,155.39,155.3,16.0971]
[1727722592598,22.4708,155.39,155.26,46.53075331]
[1727722592599,6.4387,155.31,155.27,6.44]
[1727722592786,16.0919,155.36,155.26,16.1012]
[1727722592984,6.4387,155.31,155.26,22.5419]
[1727722593493,6.4387,155.31,155.26,16.1012]
[1727722593689,16.1586,155.35,155.27,6.4403]
[1727722593885,6.4383,155.32,155.27,7.72806497]
[1727722594697,6.4383,155.32,155.27,6.4403]
[1727722595891,6.4389,155.31,155.26,22.5419]
[1727722599909,6.4391,155.3,155.26,16.1012]
[1727722600114,6.6332,155.33,155.26,16.1012]
[1727722600115,15.1402,155.32,155.26,16.1012]
[1727722600405,6.4408,155.26,155.22,6.4423]
[1727722601713,6.44,155.28,155.23,7.73023285]
[1727722602220,6.44,155.28,155.24,6.4414]
[1727722604284,31.2366,155.32,155.22,16.1057]
[1727722604484,6.4406,155.27,155.23,6.442]
[1727722604711,6.4403,155.28,155.23,6.442]
[1727722609403,6.4403,155.28,155.23,6.5024251]
[1727722609812,6.4403,155.28,155.24,7.72960171]
[1727722610317,31.2366,155.32,155.24,7.72960171]
[1727722610726,31.2366,155.32,155.25,6.4408]
[1727722614707,15.1402,155.32,155.27,6.4403]
[1727722615046,15.1402,155.32,155.26,6.4406]
[1727722617226,15.1402,155.32,155.24,22.5448]
[1727722617737,15.1402,155.32,155.25,6.4411]
[1727722619436,15.1402,155.32,155.25,7.72914003]
[1727722620012,15.1402,155.32,155.26,16.1015]
[1727722620208,16.2609,155.36,155.28,16.0997]
[1727722620412,16.2609,155.36,155.31,6.4387]
[1727722620635,16.2609,155.36,155.3,6.439]
[1727722620808,16.2609,155.36,155.31,6.4386]
[1727722621208,16.2609,155.36,155.29,1.28771195]
[1727722621408,16.2609,155.36,155.3,6.439]
[1727722623533,23.16061864,155.4,155.31,1.28763485]
[1727722623723,16.4877,155.4,155.33,6.4378]
[1727722624224,16.4877,155.4,155.34,7.72488561]
[1727722624617,16.4877,155.4,155.34,1.28748561]
[1727722624818,16.4877,155.4,155.35,6.437]
[1727722625226,16.4877,155.4,155.34,7.72478561]
[1727722625539,16.4877,155.4,155.35,6.437]
[1727722626311,16.4877,155.4,155.34,16.0933]
[1727722626517,16.4877,155.4,155.31,22.5353]
[1727722626722,16.4877,155.4,155.26,6.6695251]
[1727722626723,43.776884,155.39,155.28,16.0994]
[1727722627721,6.4376,155.34,155.28,16.0994]
[1727722627920,16.0899,155.38,155.3,16.0974]
[1727722628132,6.4367,155.36,155.32,6.4382]
[1727722628510,6.4363,155.37,155.33,6.4378]
[1727722629329,6.4363,155.37,155.3,16.0974]
[1727722629536,6.4363,155.37,155.32,6.4382]
[1727722629832,6.4363,155.37,155.33,1.28745747]
[1727722630045,16.4877,155.4,155.33,1.28745747]
[1727722630239,22.9228,155.4,155.35,6.437]
[1727722630420,6.4354,155.39,155.35,6.437]
[1727722631138,16.4877,155.4,155.37,6.4361]
[1727722631432,16.4877,155.4,155.36,16.0913]
[1727722632138,16.4877,155.4,155.36,22.5278]
[1727722633038,21.90362802,155.44,155.36,16.0913]
[1727722633237,28.33702802,155.44,155.38,16.0891]
[1727722633549,15.2309,155.44,155.38,16.0891]
[1727722633715,6.434,155.43,155.38,22.5248]
[1727722634636,6.4345,155.42,155.38,16.0891]
[1727722634826,6.4338,155.43,155.38,22.5249]
[1727722635540,6.4338,155.43,155.39,6.4354]
[1727722635921,15.2309,155.44,155.38,16.0891]
[1727722635922,15.2309,155.44,155.4,1.28690874]
[1727722636322,15.2309,155.44,155.4,7.72170874]
[1727722637317,6.4328,155.46,155.41,7.72130018]
[1727722638239,6.4328,155.46,155.41,6.4345]
[1727722640239,6.433,155.45,155.41,6.4345]
[1727722643546,6.433,155.45,155.41,7.72120278]
[1727722646640,6.433,155.45,155.41,6.4345]
[1727722649152,6.433,155.45,155.42,1.28670256]
[1727722649469,6.433,155.45,155.41,6.4345]
[1727722652363,6.433,155.45,155.41,7.72120567]
[1727722653372,6.433,155.45,155.41,6.4345]
[1727722654777,31.184,155.48,155.4,16.087]
[1727722654955,6.4338,155.43,155.4,16.087]
[1727722655269,31.184,155.48,155.4,16.087]
[1727722655577,6.4337,155.43,155.4,16.087]
[1727722655874,43.776884,155.47,155.34,6.063]
[1727722656250,16.0835,155.44,155.36,6.4364]
[1727722656857,6.4347,155.41,155.36,6.4364]
[1727722658470,6.4342,155.42,155.37,1.28710452]
[1727722658852,43.776884,155.47,155.37,1.28710452]
[1727722659055,6.4338,155.43,155.39,6.4354]
[1727722659256,6.4338,155.43,155.38,23.81165474]
[1727722662257,59.857684,155.47,155.38,17.37595474]
[1727722662568,16.0808,155.47,155.4,6.4346]
[1727722662970,6.433,155.45,155.41,1.2867987]
[1727722663153,6.433,155.45,155.41,6.4345]
[1727722664882,6.433,155.45,155.39,1.28674964]
[1727722664883,6.4324,155.47,155.42,7.72043727]
[1727722665574,15.1047,155.48,155.42,7.72043727]
[1727722665762,6.4325,155.46,155.42,7.72043727]
[1727722666075,6.4325,155.46,155.42,6.4337]
[1727722667359,6.4325,155.46,155.4,27.55772389]
[1727722667360,6.4325,155.46,155.41,6.4344]
[1727722667676,31.1845,155.48,155.39,6.3754]
[1727722668077,23.776884,155.47,155.39,6.3754]
[1727722668264,23.776884,155.47,155.38,6.4358]
[1727722668265,6.4341,155.42,155.38,6.4358]
[1727722670371,6.4338,155.43,155.38,6.4358]
[1727722670760,31.1845,155.48,155.37,31.2654]
[1727722670761,6.4333,155.44,155.4,6.4349]
[1727722670965,6.433,155.45,155.4,6.4349]
[1727722672380,6.4334,155.44,155.4,6.4349]
[1727722672786,6.434,155.43,155.39,16.0877]
[1727722673167,23.776884,155.47,155.39,16.0877]
[1727722673488,6.4341,155.42,155.39,16.0877]
[1727722674369,6.4341,155.42,155.38,6.4357]
[1727722677789,23.776884,155.45,155.36,16.091]
[1727722678098,6.4361,155.38,155.35,6.4061]
[1727722678270,6.4361,155.38,155.34,3.53042051]
[1727722678466,6.4361,155.38,155.35,7.0966985]
[1727722678687,6.4361,155.38,155.34,3.53042051]
[1727722679099,23.776884,155.42,155.35,16.0922]
[1727722679275,6.4355,155.39,155.35,16.0922]
[1727722680391,6.4355,155.39,155.35,22.5292]
[1727722680968,6.4351,155.4,155.35,22.5292]
[1727722681386,6.4359,155.38,155.34,9.97263432]
[1727722681688,6.4359,155.38,155.34,6.4374]
[1727722682500,16.0867,155.41,155.32,16.0952]
[1727722682791,6.4369,155.36,155.32,26.06777441]
[1727722683394,6.4369,155.36,155.32,16.0952]
[1727722683775,6.4369,155.36,155.32,22.5335]
[1727722683975,6.438,155.33,155.29,39.1455]
[1727722684167,43.776884,155.36,155.27,6.0108]
[1727722684494,43.776884,155.36,155.26,0.0604251]
[1727722684495,6.4394,155.3,155.26,0.0604251]
[1727722684799,6.4394,155.3,155.26,6.5011251]
[1727722684966,16.0943,155.34,155.26,6.5011251]
[1727722685169,6.4388,155.31,155.26,6.5011251]
[1727722686898,6.4384,155.32,155.27,6.4402]
[1727722688299,6.4384,155.32,155.27,6.826]
[1727722692503,6.4384,155.32,155.28,7.72770089]
[1727722692697,6.4383,155.33,155.28,7.72770089]
[1727722693582,6.4383,155.33,155.29,6.4394]
[1727722694109,6.4377,155.34,155.3,6.4391]
[1727722694276,6.4367,155.36,155.31,6.4383]
[1727722694476,15.4513,155.37,155.31,6.4383]
[1727722695473,6.4367,155.36,155.3,1.28763232]
[1727722695677,16.0881,155.4,155.32,6.4382]
[1727722695878,6.4367,155.36,155.32,6.4382]
[1727722696300,6.4363,155.37,155.32,6.4382]
[1727722697298,20.0,155.39,155.31,22.5349]
[1727722697603,6.4371,155.35,155.31,22.5349]
[1727722697784,6.4367,155.36,155.31,23.82247713]
[1727722698193,23.776884,155.38,155.31,22.5349]
[1727722698396,6.4371,155.35,155.31,23.82250571]
[1727722698986,23.776884,155.38,155.3,6.172]
[1727722699290,23.776884,155.38,155.28,16.0992]
[1727722699291,6.4383,155.32,155.28,16.0992]
[1727722700003,6.4383,155.32,155.28,22.539]
[1727722700302,6.438,155.33,155.28,22.539]
[1727722700729,6.438,155.33,155.28,16.0992]
[1727722700885,6.438,155.33,155.29,6.4395]
[1727722701202,6.4383,155.32,155.28,22.5391]
[1727722702202,6.4383,155.32,155.28,16.0992]
[1727722702803,6.4383,155.32,155.28,22.5391]
[1727722703499,16.0919,155.36,155.28,16.0992]
[1727722703682,6.4382,155.33,155.29,6.4395]
[1727722703888,16.0919,155.36,155.28,16.0992]
[1727722704089,6.4383,155.32,155.28,22.539]
[1727722707916,16.0919,155.36,155.26,0.0604251]
[1727722707917,6.4401,155.28,155.26,0.0604251]
[1727722708621,6.4403,155.27,155.26,0.0604251]
[1727722710215,6.4401,155.28,155.26,0.4462251]
[1727722710517,6.4397,155.29,155.26,0.4462251]
[1727722715891,28.44377709,155.35,155.27,6.0461]
[1727722716096,6.4374,155.35,155.31,6.4386]
[1727722718019,20.0,155.37,155.3,16.0975]
[1727722718209,6.4379,155.33,155.3,16.0975]
[1727722718395,39.866984,155.38,155.27,6.0461]
[1727722718714,39.866984,155.38,155.28,6.4397]
[1727722718715,6.4383,155.32,155.28,6.4397]
[1727722719722,6.4383,155.32,155.28,6.4399]
[1727722719902,6.4383,155.32,155.27,22.1465]
[1727722720100,23.776884,155.35,155.27,28.5867]
[1727722720319,6.4388,155.31,155.27,28.5867]
[1727722720522,16.0919,155.36,155.26,32.2625251]
[1727722720523,6.4399,155.28,155.26,0.0604251]
[1727722721925,6.4396,155.29,155.26,0.0604251]
[1727722724527,15.0644,155.33,155.26,0.0604251]
[1727722724704,15.0644,155.33,155.27,6.4402]
[1727722724705,6.4391,155.31,155.27,6.4402]
[1727722724913,6.4391,155.31,155.26,22.6026251]
[1727722725807,6.4391,155.3,155.26,22.6026251]
[1727722726828,15.0644,155.33,155.26,0.0604251]
[1727722727027,23.776884,155.32,155.26,0.0604251]
[1727722728132,6.4403,155.27,155.26,0.0604251]
[1727722731039,6.4403,155.27,155.26,0.4462251]
[1727722733435,6.44,155.28,155.26,0.4462251]
[1727722734134,47.86769072,155.33,155.26,0.4462251]
[1727722734135,20.0,155.32,155.26,0.4462251]
[1727722734512,20.0,155.3,155.26,0.4462251]
[1727722735132,23.776884,155.31,155.26,6.8869251]
[1727722735336,20.0,155.31,155.26,6.8869251]
[1727722735635,20.0,155.32,155.26,6.8869251]
[1727722740231,20.0,155.32,155.26,0.4462251]
[1727722741651,23.776884,155.31,155.26,0.4462251]
[1727722752659,43.126884,155.31,155.26,0.4462251]
[1727722753968,39.35,155.3,155.26,0.4462251]
[1727722754263,23.776884,155.29,155.26,0.4462251]
[1727722755133,43.126884,155.29,155.26,0.4462251]
[1727722755339,23.776884,155.29,155.26,0.4462251]
[1727722756345,23.776884,155.28,155.26,0.4462251]
[1727722763854,20.0,155.3,155.26,0.4462251]
[1727722765175,23.776884,155.29,155.26,0.4462251]
[1727722766064,20.0,155.31,155.26,0.4462251]
[1727722767567,23.776884,155.3,155.26,0.4462251]
[1727722773170,6.07217445,155.32,155.26,6.8868251]
[1727722774653,23.776884,155.31,155.26,6.8868251]
[1727722780083,23.776884,155.31,155.26,0.4462251]
[1727722784157,23.776884,155.32,155.26,0.4462251]
[1727722788285,23.776884,155.33,155.26,6.8869251]
[1727722790979,23.776884,155.33,155.26,0.4462251]
[1727722791366,23.776884,155.34,155.26,0.4462251]
[1727722791871,23.776884,155.32,155.26,0.4462251]
[1727722792068,51.58180011,155.33,155.26,0.4462251]
[1727722793676,43.126884,155.33,155.26,0.4462251]
[1727722796074,23.776884,155.28,155.26,0.4462251]
[1727722797270,43.126884,155.28,155.26,0.4462251]
[1727722798585,23.776884,155.28,155.26,0.4462251]
[1727722801273,21.81457445,155.32,155.26,0.4462251]
[1727722802793,30.26949056,155.32,155.26,0.4462251]
[1727722803092,23.776884,155.31,155.26,0.4462251]
[1727722803586,49.19905845,155.31,155.26,0.4462251]
[1727722803792,29.84905845,155.31,155.26,0.4462251]
[1727722804374,23.776884,155.29,155.26,0.4462251]
[1727722805182,23.776884,155.25,155.17,6.2091]
[1727722805383,23.776884,155.23,155.17,9.74939411]
[1727722805606,23.776884,155.23,155.17,6.2091]
[1727722806200,23.776884,155.23,155.18,16.1096]
[1727722806494,23.776884,155.23,155.19,6.4436]
[1727722806681,23.776884,155.23,155.18,16.1096]
[1727722806881,23.776884,155.23,155.18,22.5536]
[1727722807712,23.776884,155.23,155.18,16.1096]
[1727722807898,23.776884,155.23,155.17,6.2091]
[1727722808109,23.776884,155.23,155.13,6.2651]
[1727722808110,20.0,155.22,155.13,6.2651]
[1727722808275,23.776884,155.19,155.13,6.2651]
[1727722808895,23.776884,155.19,155.14,6.4453]
[1727722809204,23.776884,155.2,155.13,28.8265]
[1727722809397,23.776884,155.2,155.14,6.4454]
[1727722809598,23.776884,155.2,155.16,6.4448]
[1727722809798,6.65500779,155.21,155.17,6.4444]
[1727722809978,6.65500779,155.21,155.16,6.4447]
[1727722810513,23.776884,155.2,155.15,22.5579]
[1727722810691,23.776884,155.2,155.15,16.1126]
[1727722811000,23.776884,155.2,155.13,6.2651]
[1727722811305,23.776884,155.2,155.15,6.4452]
[1727722811481,23.776884,155.2,155.14,16.1141]
[1727722811687,23.776884,155.2,155.15,6.4453]
[1727722812087,23.776884,155.2,155.16,6.4448]
[1727722812597,6.65500779,155.21,155.17,6.4444]
[1727722812904,6.65500779,155.21,155.16,16.1114]
[1727722813111,6.65500779,155.21,155.16,22.5563]
[1727722813281,6.65500779,155.21,155.16,16.1114]
[1727722813484,23.776884,155.2,155.16,16.1114]
[1727722813804,23.776884,155.2,155.16,22.5563]
[1727722814280,6.65500779,155.21,155.18,6.4441]
[1727722814484,23.776884,155.24,155.18,6.4441]
[1727722815081,23.776884,155.24,155.16,16.1114]
[1727722815277,30.43189179,155.24,155.16,22.5562]
[1727722815483,6.65500779,155.23,155.15,6.4452]
[1727722815782,23.776884,155.22,155.13,28.8264]
[1727722816006,23.776884,155.2,155.13,28.8264]
[1727722816176,23.776884,155.2,155.13,22.3802]
[1727722816500,23.776884,155.2,155.13,28.8263]
[1727722817183,23.776884,155.2,155.13,22.5612]
[1727722817386,6.65500779,155.2,155.12,6.4465]
[1727722817600,23.776884,155.19,155.12,6.4465]
[1727722818194,6.65500779,155.2,155.12,6.4465]
[1727722818407,6.4437,155.19,155.14,6.4454]
[1727722818580,23.776884,155.18,155.14,6.4454]
[1727722818775,6.4442,155.18,155.13,6.446]
[1727722819192,23.776884,155.19,155.15,6.4453]
[1727722819802,6.4429,155.21,155.16,6.4448]
[1727722819994,6.4429,155.21,155.17,6.4445]
[1727722820197,6.65500779,155.24,155.19,6.4434]
[1727722820700,6.65500779,155.24,155.17,16.1112]
[1727722820701,6.4423,155.23,155.18,6.444]
[1727722820891,6.4425,155.22,155.17,22.5554]
[1727722821282,6.4421,155.23,155.18,6.444]
[1727722821501,6.65500779,155.24,155.2,6.4432]
[1727722821806,6.4407,155.27,155.23,6.4419]
[1727722822116,6.44,155.28,155.23,6.4419]
[1727722822815,6.4396,155.29,155.24,6.4415]
[1727722822987,15.764,155.3,155.25,6.441]
[1727722823307,6.4392,155.3,155.25,6.441]
[1727722824102,6.4396,155.29,155.24,6.4415]
[1727722824514,23.776884,155.32,155.23,16.1043]
[1727722824806,6.44,155.28,155.23,22.5463]
[1727722824989,6.4396,155.29,155.24,6.4415]
[1727722825190,23.776884,155.29,155.25,6.441]
[1727722825991,23.776884,155.29,155.23,22.546]
[1727722826401,6.4403,155.28,155.23,22.546]
[1727722826715,6.4408,155.26,155.21,6.4425]
[1727722827785,6.4408,155.26,155.2,36.1078]
[1727722827786,6.4408,155.26,155.22,6.4423]
[1727722829120,23.776884,155.3,155.22,6.4423]
[1727722829415,6.4404,155.27,155.22,6.4423]
[1727722829618,6.4404,155.27,155.23,6.442]
[1727722830119,6.4413,155.25,155.2,22.5508]
[1727722830713,6.4413,155.25,155.21,6.4428]
[1727722831223,6.4417,155.24,155.2,22.5509]
[1727722831395,6.4423,155.23,155.19,21.9105]
[1727722831595,6.4423,155.23,155.19,28.3541]
[1727722831795,6.4424,155.22,155.19,21.9105]
[1727722832028,6.4421,155.23,155.19,21.9105]
[1727722832806,6.4429,155.21,155.17,16.1107]
[1727722833209,6.4428,155.22,155.17,22.555]
[1727722833408,6.4428,155.22,155.15,6.5202]
[1727722833409,29.16470779,155.28,155.15,6.5202]
[1727722833621,6.4412,155.25,155.19,16.1086]
[1727722833807,6.4412,155.25,155.21,6.4428]
[1727722834209,6.4412,155.25,155.2,6.4431]
[1727722834412,6.65500779,155.28,155.21,16.1066]
[1727722834717,16.2048,155.29,155.21,38.4392]
[1727722834718,6.4408,155.26,155.21,38.4392]
[1727722835123,6.4408,155.26,155.22,6.4423]
[1727722835413,6.4408,155.26,155.21,31.9965]
[1727722835414,6.6637,155.32,155.23,1.28843089]
[1727722835622,6.4391,155.3,155.26,6.4407]
[1727722836212,6.4391,155.3,155.25,22.5431]
[1727722836414,6.438,155.33,155.28,6.4399]
[1727722837207,31.3622,155.37,155.28,6.4399]
[1727722837208,15.2713,155.37,155.28,16.0998]
[1727722837425,6.4376,155.34,155.29,6.4394]
[1727722838126,6.4379,155.33,155.28,22.5397]
[1727722839311,13.09189719,155.38,155.28,17.38772969]
[1727722839505,22.5953,155.4,155.28,17.38772969]
[1727722839506,16.0877,155.4,155.28,21.28792969]
[1727722839733,6.4362,155.38,155.32,6.4381]
[1727722839917,6.4364,155.37,155.32,6.4381]
[1727722840328,16.0877,155.4,155.3,16.097]
[1727722840628,16.0877,155.4,155.27,38.8479]
[1727722840824,6.4384,155.32,155.27,45.2882]
[1727722841531,6.4379,155.33,155.28,6.4399]
[1727722841736,16.6614,155.41,155.28,20.0]
[1727722842034,6.4372,155.35,155.29,22.5373]
[1727722842727,6.4372,155.35,155.3,6.4391]
[1727722842915,6.4378,155.34,155.29,22.5376]
[1727722843238,16.0883,155.4,155.27,22.7472]
[1727722843239,6.4383,155.32,155.28,6.4398]
[1727722843414,16.0902,155.38,155.28,6.4398]
[1727722843615,6.438,155.33,155.28,6.4398]
[1727722843834,6.4375,155.34,155.29,6.4393]
[1727722844034,23.776884,155.37,155.28,1.28785723]
[1727722844331,6.438,155.33,155.28,6.4399]
[1727722845257,6.4375,155.34,155.29,7.72725552]
[1727722845432,6.4375,155.34,155.28,17.38705552]
[1727722845618,6.4375,155.34,155.3,6.439]
[1727722845931,6.4371,155.35,155.3,6.439]
[1727722846232,23.776884,155.37,155.31,6.4386]
[1727722846524,23.776884,155.37,155.33,6.4378]
[1727722846829,30.213184,155.37,155.32,6.4382]
[1727722847023,6.4363,155.37,155.33,6.4378]
[1727722847229,16.0869,155.41,155.34,6.4373]
[1727722847418,6.4359,155.38,155.34,6.4373]
[1727722848231,8.45491611,155.42,155.34,17.38022966]
[1727722848438,22.79814737,155.44,155.34,16.0928]
[1727722848924,22.79814737,155.44,155.36,6.4364]
[1727722848925,6.4349,155.41,155.36,6.4364]
[1727722849139,22.79814737,155.44,155.36,6.4364]
[1727722849313,6.435,155.4,155.36,6.4364]
[1727722849722,22.79814737,155.44,155.36,6.4364]
[1727722849924,6.4346,155.41,155.36,6.4364]
[1727722850731,6.435,155.4,155.36,6.4364]
[1727722850913,6.4346,155.41,155.36,6.4364]
[1727722851109,6.4342,155.42,155.38,6.4358]
[1727722851314,6.4342,155.42,155.37,6.4361]
[1727722851537,16.0803,155.47,155.36,16.0906]
[1727722851709,6.4338,155.43,155.38,6.4357]
[1727722851904,6.4342,155.42,155.37,6.4361]
[1727722852324,6.4357,155.39,155.35,20.0]
[1727722852613,6.4357,155.39,155.35,6.437]
[1727722854341,16.0839,155.44,155.33,38.4595]
[1727722854342,23.776884,155.44,155.33,44.8973]
[1727722854509,6.4362,155.37,155.33,44.8973]
[1727722854710,6.4362,155.37,155.33,38.4595]
[1727722855132,23.776884,155.39,155.33,22.3653]
[1727722855526,23.776884,155.39,155.33,6.5246]
[1727722855728,23.776884,155.39,155.3,16.0974]
[1727722855729,6.4374,155.34,155.3,16.0974]
[1727722856118,23.776884,155.39,155.29,28.126]
[1727722856119,6.4379,155.33,155.29,21.6866]
[1727722856633,6.4379,155.33,155.29,28.1261]
[1727722857148,6.4375,155.34,155.29,28.1261]
[1727722860262,6.4375,155.34,155.29,21.6866]
[1727722860431,6.4375,155.34,155.3,7.72666173]
[1727722861241,16.0902,155.38,155.3,7.72666173]
[1727722861538,6.4371,155.35,155.3,7.72666173]
[1727722861748,6.4371,155.35,155.31,6.4385]
[1727722862039,16.0902,155.38,155.31,6.4385]
[1727722862230,23.776884,155.4,155.32,1.28747264]
[1727722862542,6.437,155.36,155.31,22.5348]
[1727722862721,6.4371,155.35,155.31,22.5348]
[1727722864342,23.776884,155.4,155.29,21.6866]
[1727722864645,16.091,155.37,155.29,21.6866]
[1727722864851,23.776884,155.36,155.25,38.2106]
[1727722865149,6.4402,155.28,155.25,22.1082]
[1727722865335,6.44,155.28,155.25,22.1082]
[1727722865643,23.776884,155.32,155.26,6.4407]
[1727722865847,16.6029,155.35,155.27,6.4402]
[1727722866135,6.4383,155.32,155.27,7.72808862]
[1727722866751,6.4378,155.34,155.29,6.4394]
[1727722866952,23.02244531,155.39,155.3,1.28770006]
[1727722866953,39.11154531,155.39,155.3,1.28770006]
[1727722867242,39.11154531,155.39,155.32,6.4473]
[1727722867243,6.4367,155.36,155.32,6.4473]
[1727722867435,6.4367,155.36,155.32,12.8854]
[1727722867623,6.4362,155.37,155.32,12.8854]
[1727722867824,22.5936,155.42,155.33,23.73537123]
[1727722867825,6.4358,155.38,155.33,23.73537123]
[1727722868047,16.0859,155.42,155.33,17.29757123]
[1727722868342,6.4353,155.4,155.35,6.4367]
[1727722868540,6.4346,155.41,155.36,1.28715909]
[1727722868744,6.4346,155.41,155.35,6.4366]
[1727722869534,6.435,155.4,155.35,6.4366]
[1727722869922,6.435,155.4,155.36,1.28716733]
[1727722870124,6.435,155.4,155.35,6.4366]
[1727722871242,8.45491611,155.44,155.34,16.093]
[1727722871543,6.4346,155.41,155.36,6.4366]
[1727722872624,6.4346,155.41,155.37,1.28710059]
[1727722872941,6.4341,155.42,155.37,7.72320059]
[1727722873450,6.4334,155.44,155.37,21.28710059]
[1727722873642,16.0795,155.48,155.4,12.901]
[1727722873942,6.433,155.45,155.4,12.901]
[1727722876631,6.4325,155.46,155.41,7.72112967]
[1727722877444,6.4325,155.46,155.41,6.4344]
[1727722878638,23.776884,155.5,155.41,6.4344]
[1727722878840,23.776884,155.5,155.4,22.4669]
[1727722879033,6.4342,155.42,155.4,6.4661]
[1727722879264,6.4346,155.41,155.37,16.09]
[1727722879434,6.435,155.4,155.37,16.09]
[1727722879633,6.435,155.4,155.36,22.6752]
[1727722879930,6.4365,155.37,155.32,28.7321]
[1727722880338,23.776884,155.42,155.32,28.7321]
[1727722880538,6.4366,155.36,155.32,22.2939]
[1727722881034,23.776884,155.42,155.32,6.0782]
[1727722881035,16.0891,155.39,155.32,6.0782]
[1727722881345,6.4371,155.35,155.32,6.0782]
[1727722882046,6.4363,155.37,155.32,13.80380835]
[1727722882431,6.4363,155.37,155.32,12.5163]
[1727722882634,6.4363,155.37,155.33,1.28739936]
[1727722883037,6.4358,155.38,155.33,7.72519936]
[1727722883238,6.4358,155.38,155.33,6.4378]
[1727722883455,16.0858,155.42,155.33,6.4378]
[1727722883456,6.4363,155.37,155.33,6.4378]
[1727722884032,6.4363,155.37,155.32,6.0782]
[1727722884033,6.437,155.35,155.32,6.0782]
[1727722884239,6.4376,155.34,155.32,6.0782]
[1727722884435,16.0881,155.4,155.32,6.0782]
[1727722884661,23.776884,155.39,155.32,6.0782]
[1727722885168,6.4378,155.34,155.32,6.0782]
[1727722885739,6.437,155.35,155.32,6.0782]
[1727722886544,23.776884,155.39,155.32,6.0782]